fUST/lending_fUST_20250819
["ID","MTS","AMOUNT","RATE_DAILY","PERIOD"]
[380087136,1755532831986,200.0,0.00027366,120]
[380087137,1755532966998,190.12,0.00015984,2]
[380087138,1755532967281,190.12,0.00015984,2]
[380087139,1755532967656,190.12,0.00015984,2]
[380087140,1755532999801,443.61,0.00015984,2]
[380087141,1755533000088,443.61,0.00015984,2]
[380087142,1755533002331,443.62,0.00015984,2]
[380087143,1755533011081,151.89,0.00018551,2]
[380087144,1755533149728,186.766835,0.00018137,2]
[380087145,1755533150024,498.044893,0.00018138,2]
[380087146,1755533150344,655.14737907,0.00018139,2]
[380087147,1755533150663,241.412838,0.00018505,2]
[380087148,1755533188428,665.42,0.00015984,2]
[380087149,1755533188840,665.42,0.00015984,2]
[380087150,1755533362450,104728.20099985,0.00028767,120]
[380087162,1755533432487,-150.77383924,0.00018698,2]
[380087163,1755533432496,-300.0,0.00018698,2]
[380087164,1755533432506,-300.0,0.00018698,2]
[380087166,1755533432515,-1200.0,0.00018699,2]
[380087167,1755533432524,-1200.0,0.00018699,2]
[380087168,1755533432534,-300.0,0.00018699,2]
[380087169,1755533432543,-2909.34483017,0.000187,2]
[380087170,1755533432555,-2090.65516983,0.000187,2]
[380087171,1755533432564,-1013.33049499,0.00018799,2]
[380087172,1755533432573,-2510.30456042,0.00018977,2]
[380087173,1755533432583,-2183.31810187,0.00019067,2]
[380087174,1755533432592,-500.0,0.00019075,2]
[380087175,1755533432601,-500.0,0.00019075,2]
[380087176,1755533432610,-226.96145586,0.00019075,2]
[380087177,1755533432620,-500.0,0.00019075,2]
[380087178,1755533432629,-500.0,0.00019075,2]
[380087179,1755533432639,-474.62874062,0.00019075,2]
[380087180,1755533432648,-635.97936412,0.00019075,2]
[380087181,1755533432657,-500.0,0.00019075,2]
[380087182,1755533432666,-23694.26787715,0.00019076,2]
[380087183,1755533432678,-26305.73212285,0.00019076,2]
[380087184,1755533432687,-169.8250182,0.00019078,2]
[380087185,1755533432697,-2264.10087164,0.00019122,2]
[380087186,1755533432707,-1388.76518428,0.00019164,2]
[380087187,1755533432717,-151.0,0.00019166,2]
[380087188,1755533432726,-284.93934815,0.00019166,2]
[380087189,1755533432735,-151.0,0.00019166,2]
[380087190,1755533432744,-151.0,0.00019166,2]
[380087191,1755533432756,-151.0,0.00019166,2]
[380087192,1755533432765,-291.70077764,0.00019166,2]
[380087193,1755533432775,-151.0,0.00019166,2]
[380087194,1755533432788,-151.0,0.00019166,2]
[380087195,1755533432799,-151.0,0.00019166,2]
[380087196,1755533432808,-151.0,0.00019166,2]
[380087197,1755533432817,-151.0,0.00019166,2]
[380087198,1755533432828,-151.0,0.00019166,2]
[380087199,1755533432838,-151.0,0.00019166,2]
[380087200,1755533432847,-151.0,0.00019166,2]
[380087201,1755533432858,-17842.522448,0.00019166,2]
[380087202,1755533432868,-151.0,0.00019166,2]
[380087203,1755533432877,-275.42496579,0.00019166,2]
[380087204,1755533432886,-151.0,0.00019166,2]
[380087205,1755533432895,-99.4837078,0.00019166,2]
[380087212,1755533438520,-353.18525695,0.00019075,2]
[380087213,1755533438529,-405.45127757,0.00019075,2]
[380087214,1755533438541,-94.54872243,0.00019075,2]
[380087215,1755533438550,-443.83175689,0.00019075,2]
[380087346,1755533440396,-56.16824311,0.00019075,2]
[380087347,1755533440406,-500.0,0.00019075,2]
[380087348,1755533440416,-500.0,0.00019075,2]
[380087349,1755533440427,-500.0,0.00019075,2]
[380087350,1755533440436,-500.0,0.00019075,2]
[380087351,1755533440445,-500.0,0.00019075,2]
[380087352,1755533440455,-500.0,0.00019075,2]
[380087353,1755533440466,-500.0,0.00019075,2]
[380087354,1755533440475,-500.0,0.00019075,2]
[380087355,1755533440485,-500.0,0.00019075,2]
[380087356,1755533440494,-500.0,0.00019075,2]
[380087357,1755533440504,-500.0,0.00019075,2]
[380087358,1755533440514,-500.0,0.00019075,2]
[380087359,1755533440524,-500.0,0.00019075,2]
[380087361,1755533440534,-500.0,0.00019075,2]
[380087362,1755533440543,-51.5162922,0.00019166,2]
[380087363,1755533440553,-151.0,0.00019166,2]
[380087364,1755533440563,-151.0,0.00019166,2]
[380087365,1755533440573,-151.0,0.00019166,2]
[380087366,1755533440584,-151.0,0.00019166,2]
[380087367,1755533440594,-151.0,0.00019166,2]
[380087368,1755533440603,-151.0,0.00019166,2]
[380087369,1755533440614,-151.0,0.00019166,2]
[380087370,1755533440624,-151.0,0.00019166,2]
[380087371,1755533440633,-151.0,0.00019166,2]
[380087372,1755533440643,-1871.55,0.00019168,3]
[380087373,1755533440652,-935.77,0.00019168,3]
[380087374,1755533440661,-467.89,0.00019168,3]
[380087375,1755533440671,-233.94,0.00019168,3]
[380087377,1755533440680,-2347.87260389,0.00019177,2]
[380087379,1755533440690,-330.67433841,0.00019177,2]
[380087380,1755533440700,-480.0,0.00019178,2]
[380087381,1755533440709,-480.0,0.00019178,2]
[380087382,1755533440719,-480.0,0.00019178,2]
[380087383,1755533440728,-480.0,0.00019178,2]
[380087384,1755533440738,-480.0,0.00019178,2]
[380087385,1755533440747,-480.0,0.00019178,2]
[380087386,1755533440757,-500.0,0.00019178,2]
[380087387,1755533440766,-500.0,0.00019178,2]
[380087388,1755533440777,-500.0,0.00019178,2]
[380087389,1755533440791,-500.0,0.00019178,2]
[380087390,1755533440801,-500.0,0.00019178,2]
[380087391,1755533440811,-480.0,0.00019178,2]
[380087392,1755533440820,-480.0,0.00019178,2]
[380087393,1755533440831,-480.0,0.00019178,2]
[380087394,1755533440841,-405.41925666,0.00019178,2]
[380087395,1755533440850,-480.0,0.00019178,2]
[380087396,1755533440861,-480.0,0.00019178,2]
[380087397,1755533440872,-480.0,0.00019178,2]
[380087398,1755533440882,-480.0,0.00019178,2]
[380087399,1755533440891,-420.0,0.00019178,2]
[380087400,1755533440901,-480.0,0.00019178,2]
[380087401,1755533440911,-480.0,0.00019178,2]
[380087402,1755533440921,-480.0,0.00019178,2]
[380087403,1755533440930,-503.2307665,0.00019178,2]
[380087404,1755533440940,-480.0,0.00019178,2]
[380087405,1755533440950,-480.0,0.00019178,2]
[380087406,1755533440962,-405.17369016,0.00019178,2]
[380087407,1755533440994,-485.42197713,0.00019178,2]
[380087408,1755533441006,-211.00494772,0.00019178,2]
[380087409,1755533441016,-500.0,0.00019178,2]
[380087410,1755533441025,-480.0,0.00019178,2]
[380087411,1755533441035,-434.43464044,0.00019178,2]
[380087412,1755533441045,-625.8984158,0.00019178,2]
[380087414,1755533441054,-461.66385513,0.00019178,2]
[380087415,1755533441064,-456.76404804,0.00019178,2]
[380087416,1755533441073,-463.01927669,0.00019178,2]
[380087417,1755533441084,-480.0,0.00019178,2]
[380087418,1755533441093,-461.84084996,0.00019178,2]
[380087419,1755533441103,-460.0,0.00019178,2]
[380087420,1755533441113,-488.40846653,0.00019178,2]
[380087421,1755533441123,-442.94462527,0.00019178,2]
[380087422,1755533441132,-480.0,0.00019178,2]
[380087423,1755533441143,-477.02133068,0.00019178,2]
[380087424,1755533441153,-480.0,0.00019178,2]
[380087425,1755533441263,-480.0,0.00019178,2]
[380087426,1755533441274,-480.0,0.00019178,2]
[380087427,1755533441283,-480.0,0.00019178,2]
[380087428,1755533441292,-480.0,0.00019178,2]
[380087429,1755533441302,-470.0,0.00019178,2]
[380087430,1755533441312,-315.89642422,0.00019178,2]
[380087431,1755533441322,-480.0,0.00019178,2]
[380087432,1755533441331,-480.0,0.00019178,2]
[380087433,1755533441341,-480.0,0.00019178,2]
[380087434,1755533441351,-480.0,0.00019178,2]
[380087435,1755533441360,-485.26415761,0.00019178,2]
[380087436,1755533441370,-480.0,0.00019178,2]
[380087437,1755533441379,-480.0,0.00019178,2]
[380087438,1755533441389,-591.2979513,0.00019178,2]
[380087439,1755533441398,-480.0,0.00019178,2]
[380087440,1755533441407,-480.0,0.00019178,2]
[380087441,1755533441417,-480.0,0.00019178,2]
[380087442,1755533441426,-726.33,0.00019178,2]
[380087443,1755533441436,-480.0,0.00019178,2]
[380087444,1755533441445,-480.0,0.00019178,2]
[380087445,1755533441454,-480.0,0.00019178,2]
[380087446,1755533441463,-480.0,0.00019178,2]
[380087447,1755533441472,-312.58384255,0.00019178,2]
[380087505,1755533696440,163.996987,0.00013699,2]
[380087508,1755533877348,6918.0,0.00018551,2]
[380087513,1755533991391,186.32,0.00015984,2]
[380087514,1755533991809,186.3,0.00015984,2]
[380087516,1755533996721,4560.97559988,0.00018551,2]
[380087517,1755534043310,191.29,0.00015984,2]
[380087518,1755534043572,191.29,0.00015984,2]
[380087519,1755534043848,191.28,0.00015984,2]
[380087521,1755534093665,194.3,0.00015984,2]
[380087607,1755534342880,6350.74,0.00018551,2]
[380087609,1755534352530,503.352577,0.00018138,2]
[380087610,1755534352955,246.975387,0.0001823,2]
[380087611,1755534353215,432.206928,0.00018231,2]
[380087612,1755534353544,537.29977104,0.00018232,2]
[380087613,1755534355830,180.19289622,0.00018296,2]
[380087699,1755534454935,480.0,0.00027945,120]
[380087703,1755534522154,211.54346948,0.00016,2]
[380087788,1755534610185,5000.0,0.00018551,2]
[380087789,1755534625547,5000.0,0.00018551,2]
[380087808,1755534632529,-2445.68132529,0.00018699,2]
[380087809,1755534632538,-150.77383924,0.00018699,2]
[380087810,1755534632547,-300.0,0.00018793,2]
[380087811,1755534632557,-300.0,0.00018793,2]
[380087812,1755534632566,-1200.0,0.00018794,2]
[380087813,1755534632576,-1200.0,0.00018794,2]
[380087814,1755534632584,-500.0,0.00018795,2]
[380087816,1755534632593,-10378.66458305,0.00018795,2]
[380087884,1755534638358,-8136.37911361,0.00018795,2]
[380087885,1755534638518,-31484.95630334,0.00018795,2]
[380087886,1755534638528,-583.17545622,0.00018795,2]
[380087887,1755534638538,-500.0,0.00018795,2]
[380087888,1755534638547,-500.0,0.00018795,2]
[380087889,1755534638556,-500.0,0.00018795,2]
[380087890,1755534638565,-500.0,0.00018795,2]
[380087891,1755534638574,-500.0,0.00018795,2]
[380087892,1755534638582,-500.0,0.00018795,2]
[380087893,1755534638591,-500.0,0.00018795,2]
[380087894,1755534638600,-500.0,0.00018795,2]
[380087895,1755534638610,-500.0,0.00018795,2]
[380087896,1755534638621,-500.0,0.00018795,2]
[380087897,1755534638630,-500.0,0.00018795,2]
[380087898,1755534638638,-500.0,0.00018795,2]
[380087899,1755534638647,-500.0,0.00018795,2]
[380087900,1755534638656,-500.0,0.00018795,2]
[380087901,1755534638666,-500.0,0.00018795,2]
[380087902,1755534638675,-500.0,0.00018795,2]
[380087903,1755534638684,-500.0,0.00018795,2]
[380087904,1755534638694,-500.0,0.00018795,2]
[380087905,1755534638703,-500.0,0.00018795,2]
[380087906,1755534638713,-500.0,0.00018795,2]
[380087907,1755534638722,-500.0,0.00018795,2]
[380087908,1755534638732,-500.0,0.00018795,2]
[380087909,1755534638741,-500.0,0.00018795,2]
[380087910,1755534638750,-500.0,0.00018795,2]
[380087911,1755534638759,-500.0,0.00018795,2]
[380087912,1755534638769,-500.0,0.00018795,2]
[380087913,1755534638778,-500.0,0.00018795,2]
[380087914,1755534638788,-500.0,0.00018795,2]
[380087915,1755534638797,-500.0,0.00018795,2]
[380087916,1755534638806,-500.0,0.00018795,2]
[380087917,1755534638815,-500.0,0.00018795,2]
[380087918,1755534638824,-500.0,0.00018795,2]
[380087919,1755534638834,-500.0,0.00018795,2]
[380087920,1755534638843,-500.0,0.00018795,2]
[380087921,1755534638852,-500.0,0.00018795,2]
[380087922,1755534638861,-500.0,0.00018795,2]
[380087923,1755534638873,-500.0,0.00018795,2]
[380087924,1755534638883,-500.0,0.00018795,2]
[380087925,1755534638892,-500.0,0.00018795,2]
[380087926,1755534638902,-427.25761058,0.00018795,2]
[380087927,1755534638911,-500.0,0.00018795,2]
[380087928,1755534638922,-500.0,0.00018795,2]
[380087929,1755534638931,-500.0,0.00018795,2]
[380087930,1755534638940,-500.0,0.00018795,2]
[380087931,1755534638950,-500.0,0.00018795,2]
[380087932,1755534638960,-500.0,0.00018795,2]
[380087933,1755534638969,-500.0,0.00018795,2]
[380087934,1755534638979,-500.0,0.00018795,2]
[380087935,1755534638988,-200.0,0.00018795,2]
[380087936,1755534638998,-1000.0,0.00018796,2]
[380087937,1755534639007,-1000.0,0.00018796,2]
[380087938,1755534639017,-1000.0,0.00018796,2]
[380087939,1755534639026,-1000.0,0.00018796,2]
[380087940,1755534639037,-1000.0,0.00018796,2]
[380087941,1755534639048,-1000.0,0.00018799,2]
[380087942,1755534639058,-1000.0,0.00018799,2]
[380087943,1755534639068,-1000.0,0.00018799,2]
[380087944,1755534639081,-1000.0,0.00018799,2]
[380087945,1755534639090,-1000.0,0.00018799,2]
[380087946,1755534639100,-1000.0,0.00018799,2]
[380087947,1755534639109,-3396.22611379,0.00018833,2]
[380087948,1755534639123,-170.33979147,0.000189,2]
[380087949,1755534639133,-1800.0,0.00018933,2]
[380087950,1755534639143,-291.36202476,0.00018942,2]
[380087951,1755534639152,-240.120184,0.00018966,2]
[380087952,1755534639162,-2183.31810187,0.00018986,2]
[380087953,1755534639172,-39019.55577581,0.00019,2]
[380087954,1755534639181,-291.36202474,0.00019031,2]
[380087955,1755534639190,-2264.10087164,0.00019041,2]
[380087956,1755534639200,-884.83,0.00019057,3]
[380087957,1755534639211,-442.42,0.00019057,3]
[380087958,1755534639221,-1769.67,0.00019063,3]
[380087959,1755534639231,-1000.0,0.00019067,2]
[380087960,1755534639241,-151.0,0.00019067,2]
[380087961,1755534639250,-1000.0,0.00019067,2]
[380087962,1755534639259,-877.52615819,0.00019067,2]
[380087963,1755534639269,-151.0,0.00019067,2]
[380087964,1755534639278,-300.0,0.00019067,2]
[380087965,1755534639287,-151.0,0.00019067,2]
[380087966,1755534639297,-151.0,0.00019067,2]
[380087967,1755534639307,-151.0,0.00019067,2]
[380087968,1755534639317,-300.0,0.00019067,2]
[380087969,1755534639326,-152.74620755,0.00019067,2]
[380087970,1755534639335,-300.0,0.00019067,2]
[380087971,1755534639344,-151.0,0.00019067,2]
[380087972,1755534639354,-151.0,0.00019067,2]
[380087973,1755534639363,-151.0,0.00019067,2]
[380087974,1755534639372,-17842.522448,0.00019067,2]
[380087975,1755534639381,-500.0,0.00019069,2]
[380087976,1755534639391,-3835.58299224,0.00019073,2]
[380087977,1755534639401,-283.02447065,0.00019077,2]
[380087978,1755534639410,-453.35,0.00019078,2]
[380087979,1755534639419,-98592.00786767,0.00019078,2]
[380087980,1755534639428,-281.0,0.00019095,2]
[380087981,1755534639438,-2347.87260389,0.00019096,2]
[380087982,1755534639447,-580.787823,0.000191,2]
[380087983,1755534639456,-580.787823,0.000191,2]
[380087984,1755534639466,-580.787823,0.000191,2]
[380087985,1755534639476,-580.787823,0.000191,2]
[380087986,1755534639485,-1161.575646,0.000191,2]
[380087987,1755534639495,-580.787823,0.000191,2]
[380087988,1755534639504,-291.36202474,0.00019121,2]
[380087989,1755534639625,-18371.22881476,0.00019146,2]
[380087990,1755534639635,-2434.74389024,0.00019151,2]
[380087991,1755534639644,-200.0,0.00019169,20]
[380087992,1755534639655,-200.0,0.00019169,20]
[380087993,1755534639665,-200.0,0.00019169,20]
[380087994,1755534639674,-200.0,0.00019169,20]
[380087995,1755534639683,-200.0,0.00019169,20]
[380087996,1755534639693,-200.0,0.00019169,20]
[380087997,1755534639702,-200.0,0.00019169,20]
[380087998,1755534639711,-200.0,0.00019169,20]
[380087999,1755534639720,-200.0,0.00019169,20]
[380088000,1755534639729,-200.0,0.00019169,20]
[380088001,1755534639738,-600.0,0.0001917,20]
[380088002,1755534639747,-500.0,0.00019173,2]
[380088003,1755534639756,-502.26575725,0.00019173,2]
[380088004,1755534639766,-500.0,0.00019173,2]
[380088005,1755534639775,-325.94993229,0.00019173,2]
[380088006,1755534639785,-500.0,0.00019173,2]
[380088007,1755534639794,-500.0,0.00019173,2]
[380088008,1755534639804,-500.0,0.00019173,2]
[380088009,1755534639813,-500.0,0.00019173,2]
[380088010,1755534639824,-500.0,0.00019173,2]
[380088011,1755534639833,-500.0,0.00019173,2]
[380088012,1755534639842,-501.77249218,0.00019173,2]
[380088013,1755534639852,-500.0,0.00019173,2]
[380088014,1755534639861,-500.0,0.00019173,2]
[380088015,1755534639871,-500.0,0.00019173,2]
[380088016,1755534639881,-500.0,0.00019173,2]
[380088018,1755534639890,-500.0,0.00019173,2]
[380088019,1755534639899,-277.10577989,0.00019173,2]
[380088020,1755534639910,-500.0,0.00019173,2]
[380088021,1755534639919,-500.0,0.00019173,2]
[380088022,1755534639929,-500.0,0.00019173,2]
[380088023,1755534639938,-500.0,0.00019173,2]
[380088024,1755534639947,-500.0,0.00019173,2]
[380088025,1755534639957,-500.0,0.00019173,2]
[380088026,1755534639966,-160.33864374,0.00019173,2]
[380088027,1755534639975,-500.0,0.00019173,2]
[380088028,1755534639984,-500.0,0.00019173,2]
[380088030,1755534639994,-159.55032346,0.00019173,2]
[380088032,1755534640003,-500.0,0.00019173,2]
[380088034,1755534640012,-500.0,0.00019173,2]
[380088035,1755534640021,-500.0,0.00019173,2]
[380088037,1755534640030,-500.0,0.00019173,2]
[380088038,1755534640039,-500.0,0.00019173,2]
[380088039,1755534640049,-150.0,0.00019175,2]
[380088040,1755534640058,-7282.32128307,0.00019178,2]
[380088041,1755534640076,-480.0,0.00019178,2]
[380088042,1755534640085,-913.07,0.00019178,2]
[380088043,1755534640095,-364.82527584,0.00019178,2]
[380088044,1755534640105,-319.5042743,0.00019178,2]
[380088045,1755534640117,-480.0,0.00019178,2]
[380088046,1755534640127,-480.0,0.00019178,2]
[380088047,1755534640138,-480.0,0.00019178,2]
[380088048,1755534640147,-306.97,0.00019178,2]
[380088049,1755534640156,-480.0,0.00019178,2]
[380088050,1755534640166,-480.0,0.00019178,2]
[380088051,1755534640176,-480.0,0.00019178,2]
[380088052,1755534640185,-965.45,0.00019178,2]
[380088053,1755534640197,-480.0,0.00019178,2]
[380088054,1755534640206,-480.0,0.00019178,2]
[380088055,1755534640216,-484.18296958,0.00019178,2]
[380088056,1755534640228,-480.0,0.00019178,2]
[380088057,1755534640238,-480.0,0.00019178,2]
[380088058,1755534640248,-417.15547288,0.00019178,2]
[380088059,1755534640257,-480.0,0.00019178,2]
[380088060,1755534640267,-480.0,0.00019178,2]
[380088061,1755534640276,-480.0,0.00019178,2]
[380088062,1755534640285,-480.0,0.00019178,2]
[380088063,1755534640294,-480.0,0.00019178,2]
[380088064,1755534640304,-480.0,0.00019178,2]
[380088065,1755534640314,-480.0,0.00019178,2]
[380088066,1755534640323,-500.0,0.00019178,2]
[380088067,1755534640335,-500.0,0.00019178,2]
[380088068,1755534640354,-500.0,0.00019178,2]
[380088069,1755534640365,-500.0,0.00019178,2]
[380088070,1755534640375,-500.0,0.00019178,2]
[380088071,1755534640386,-500.0,0.00019178,2]
[380088072,1755534640396,-480.0,0.00019178,2]
[380088073,1755534640406,-480.0,0.00019178,2]
[380088074,1755534640415,-480.0,0.00019178,2]
[380088075,1755534640424,-460.0,0.00019178,2]
[380088076,1755534640434,-480.0,0.00019178,2]
[380088077,1755534640444,-480.0,0.00019178,2]
[380088078,1755534640454,-480.0,0.00019178,2]
[380088079,1755534640463,-151.0,0.00019178,2]
[380088080,1755534640472,-285.90722262,0.00019178,2]
[380088081,1755534640481,-483.87035645,0.00019178,2]
[380088082,1755534640491,-480.0,0.00019178,2]
[380088083,1755534640500,-151.0,0.00019178,2]
[380088084,1755534640509,-480.0,0.00019178,2]
[380088085,1755534640518,-480.0,0.00019178,2]
[380088086,1755534640528,-480.0,0.00019178,2]
[380088087,1755534640537,-480.0,0.00019178,2]
[380088088,1755534640546,-460.0,0.00019178,2]
[380088089,1755534640555,-480.0,0.00019178,2]
[380088090,1755534640565,-480.0,0.00019178,2]
[380088091,1755534640574,-480.0,0.00019178,2]
[380088092,1755534640583,-480.0,0.00019178,2]
[380088093,1755534640592,-798.43,0.00019178,2]
[380088094,1755534640602,-850.28,0.00019178,2]
[380088095,1755534640611,-460.0,0.00019178,2]
[380088096,1755534640621,-480.0,0.00019178,2]
[380088097,1755534640631,-480.0,0.00019178,2]
[380088098,1755534640640,-480.0,0.00019178,2]
[380088099,1755534640650,-480.0,0.00019178,2]
[380088100,1755534640659,-483.35009675,0.00019178,2]
[380088101,1755534640668,-488.13,0.00019178,2]
[380088102,1755534640677,-480.0,0.00019178,2]
[380088103,1755534640686,-151.0,0.00019178,2]
[380088104,1755534640696,-151.0,0.00019178,2]
[380088105,1755534640705,-299.80496,0.00019178,2]
[380088106,1755534640714,-480.0,0.00019178,2]
[380088107,1755534640724,-480.0,0.00019178,2]
[380088108,1755534640733,-480.0,0.00019178,2]
[380088109,1755534640743,-480.0,0.00019178,2]
[380088110,1755534640752,-151.0,0.00019178,2]
[380088111,1755534640762,-480.3066575,0.00019178,2]
[380088112,1755534640771,-363.13383943,0.00019178,2]
[380088113,1755534640781,-846.93,0.00019178,2]
[380088114,1755534640790,-151.0,0.00019178,2]
[380088115,1755534640799,-480.95393417,0.00019178,2]
[380088116,1755534640808,-480.0,0.00019178,2]
[380088117,1755534640818,-151.0,0.00019178,2]
[380088118,1755534640827,-480.0,0.00019178,2]
[380088119,1755534640836,-485.6,0.00019178,2]
[380088120,1755534640845,-480.0,0.00019178,2]
[380088121,1755534640857,-151.0,0.00019178,2]
[380088122,1755534640867,-151.0,0.00019178,2]
[380088123,1755534640876,-362.82984779,0.00019178,2]
[380088124,1755534640886,-483.53420393,0.00019178,2]
[380088125,1755534640895,-480.0,0.00019178,2]
[380088126,1755534640905,-428.81321486,0.00019178,2]
[380088127,1755534640914,-480.0,0.00019178,2]
[380088128,1755534640924,-480.0,0.00019178,2]
[380088129,1755534640933,-347.29097973,0.00019178,2]
[380088130,1755534640943,-480.86386043,0.00019178,2]
[380088131,1755534640952,-480.0,0.00019178,2]
[380088132,1755534640962,-480.0,0.00019178,2]
[380088133,1755534640971,-481.46792336,0.00019178,2]
[380088134,1755534640981,-480.0,0.00019178,2]
[380088135,1755534640990,-480.0,0.00019178,2]
[380088136,1755534640999,-500.0,0.00019178,2]
[380088137,1755534641009,-480.0,0.00019178,2]
[380088138,1755534641018,-480.0,0.00019178,2]
[380088139,1755534641027,-480.0,0.00019178,2]
[380088140,1755534641037,-483.75959354,0.00019178,2]
[380088141,1755534641047,-480.0,0.00019178,2]
[380088142,1755534641057,-363.12377937,0.00019178,2]
[380088143,1755534641066,-463.66038074,0.00019178,2]
[380088144,1755534641075,-480.0,0.00019178,2]
[380088145,1755534641084,-480.0,0.00019178,2]
[380088146,1755534641094,-556.17070994,0.00019178,2]
[380088147,1755534641104,-480.0,0.00019178,2]
[380088148,1755534641113,-480.0,0.00019178,2]
[380088149,1755534641127,-480.0,0.00019178,2]
[380088150,1755534641137,-480.0,0.00019178,2]
[380088151,1755534641147,-480.0,0.00019178,2]
[380088152,1755534641156,-480.0,0.00019178,2]
[380088153,1755534641165,-481.78282701,0.00019178,2]
[380088154,1755534641175,-424.67426976,0.00019178,2]
[380088155,1755534641184,-480.0,0.00019178,2]
[380088156,1755534641195,-151.0,0.00019178,2]
[380088157,1755534641204,-151.0,0.00019178,2]
[380088158,1755534641213,-480.0,0.00019178,2]
[380088159,1755534641222,-480.0,0.00019178,2]
[380088160,1755534641231,-151.0,0.00019178,2]
[380088161,1755534641241,-154.82555,0.00019178,2]
[380088162,1755534641250,-151.0,0.00019178,2]
[380088163,1755534641259,-151.0,0.00019178,2]
[380088164,1755534641269,-501.3,0.00019178,2]
[380088165,1755534641278,-480.0,0.00019178,2]
[380088166,1755534641288,-480.0,0.00019178,2]
[380088167,1755534641297,-151.0,0.00019178,2]
[380088168,1755534641307,-151.811457,0.00019178,2]
[380088169,1755534641316,-480.0,0.00019178,2]
[380088170,1755534641325,-151.0,0.00019178,2]
[380088171,1755534641334,-151.0,0.00019178,2]
[380088172,1755534641343,-161.63959068,0.00019178,2]
[380088173,1755534641353,-152.26294,0.00019178,2]
[380088174,1755534641363,-480.0,0.00019178,2]
[380088175,1755534641372,-480.0,0.00019178,2]
[380088176,1755534641381,-480.0,0.00019178,2]
[380088177,1755534641391,-461.60215222,0.00019178,2]
[380088178,1755534641401,-480.0,0.00019178,2]
[380088179,1755534641410,-481.14136456,0.00019178,2]
[380088180,1755534641419,-482.52640324,0.00019178,2]
[380088181,1755534641429,-481.18339881,0.00019178,2]
[380088182,1755534641438,-480.0,0.00019178,2]
[380088183,1755534641447,-480.0,0.00019178,2]
[380088184,1755534641456,-281.91068663,0.00019178,2]
[380088185,1755534641467,-480.0,0.00019178,2]
[380088187,1755534641476,-480.0,0.00019178,2]
[380088195,1755534641574,-480.0,0.00019178,2]
[380088196,1755534641584,-151.0,0.00019178,2]
[380088197,1755534641594,-151.0,0.00019178,2]
[380088198,1755534641603,-480.0,0.00019178,2]
[380088199,1755534641612,-151.0,0.00019178,2]
[380088201,1755534641622,-480.0,0.00019178,2]
[380088203,1755534641631,-482.74031505,0.00019178,2]
[380088204,1755534641640,-480.0,0.00019178,2]
[380088205,1755534641649,-420.84581431,0.00019178,2]
[380088206,1755534641658,-480.0,0.00019178,2]
[380088207,1755534641667,-480.0,0.00019178,2]
[380088208,1755534641676,-151.0,0.00019178,2]
[380088209,1755534641686,-151.0,0.00019178,2]
[380088210,1755534641695,-482.6902743,0.00019178,2]
[380088211,1755534641704,-482.10456563,0.00019178,2]